bitfinex/quotes_BTCUSD_20241020
["timestamp","ask_amount","ask_price","bid_price","bid_amount"]
[1729425042467,0.01168,68428.0,68427.0,0.11614603]
[1729425042684,0.16063915,68428.0,68427.0,0.11214603]
[1729425042903,0.16063915,68428.0,68427.0,0.09027925]
[1729425042904,0.25713915,68428.0,68427.0,0.09027925]
[1729425043130,0.35298406,68428.0,68427.0,0.024654]
[1729425045431,0.43028406,68428.0,68427.0,0.001654]
[1729425046364,0.43528406,68428.0,68427.0,0.001654]
[1729425046573,0.44128406,68428.0,68427.0,0.001654]
[1729425047266,0.4871052,68428.0,68427.0,0.001654]
[1729425047514,0.44328406,68428.0,68427.0,0.001654]
[1729425047736,0.51915267,68428.0,68427.0,0.001654]
[1729425047956,0.51715267,68428.0,68427.0,0.001654]
[1729425055825,0.44128406,68428.0,68427.0,0.001654]
[1729425057810,0.44328406,68428.0,68427.0,0.001654]
[1729425058039,0.44128406,68428.0,68427.0,0.001654]
[1729425063883,0.44328406,68428.0,68427.0,0.001654]
[1729425066698,0.44128406,68428.0,68427.0,0.001654]
[1729425066913,0.48647787,68428.0,68427.0,0.001654]
[1729425067574,0.48847787,68428.0,68427.0,0.001654]
[1729425068060,0.48647787,68428.0,68427.0,0.001654]
[1729425070310,0.48847787,68428.0,68427.0,0.001654]
[1729425071011,0.48647787,68428.0,68427.0,0.001654]
[1729425072804,0.48847787,68428.0,68427.0,0.001654]
[1729425073451,0.48647787,68428.0,68427.0,0.001654]
[1729425087559,0.53014982,68428.0,68427.0,0.001654]
[1729425087987,0.48647787,68428.0,68427.0,0.001654]
[1729425088228,0.53014982,68428.0,68427.0,0.001654]
[1729425088706,0.48647787,68428.0,68427.0,0.001654]
[1729425089362,0.53026431,68428.0,68427.0,0.001654]
[1729425089585,0.48647787,68428.0,68427.0,0.001654]
[1729425089854,0.5519858,68428.0,68427.0,0.001654]
[1729425090782,0.57382178,68428.0,68427.0,0.001654]
[1729425090999,0.55219518,68428.0,68427.0,0.001654]
[1729425091449,0.48647787,68428.0,68427.0,0.001654]
[1729425091675,0.57382178,68428.0,68427.0,0.001654]
[1729425091893,0.57414092,68428.0,68427.0,0.001654]
[1729425092326,0.48647787,68428.0,68427.0,0.001654]
[1729425092545,0.59565776,68428.0,68427.0,0.001654]
[1729425093845,0.48647787,68428.0,68427.0,0.001654]
[1729425094057,0.59565776,68428.0,68427.0,0.001654]
[1729425094489,0.48647787,68428.0,68427.0,0.001654]
[1729425094939,0.59608382,68428.0,68427.0,0.001654]
[1729425095829,0.48647787,68428.0,68427.0,0.001654]
[1729425096329,0.59608382,68428.0,68427.0,0.001654]
[1729425098284,0.48647787,68428.0,68427.0,0.001654]
[1729425098494,0.59608671,68428.0,68427.0,0.001654]
[1729425098954,0.51878671,68428.0,68427.0,0.001654]
[1729425099392,0.40917787,68428.0,68427.0,0.001654]
[1729425099828,0.51878564,68428.0,68427.0,0.001654]
[1729425100270,0.40917787,68428.0,68427.0,0.001654]
[1729425101120,0.51878607,68428.0,68427.0,0.001654]
[1729425101600,0.40917787,68428.0,68427.0,0.001654]
[1729425102028,0.51878625,68428.0,68427.0,0.001654]
[1729425102241,0.40917787,68428.0,68427.0,0.001654]
[1729425102953,0.40515346,68428.0,68427.0,0.001654]
[1729425103169,0.51476467,68428.0,68427.0,0.001654]
[1729425103388,0.40515346,68428.0,68427.0,0.001654]
[1729425103608,0.42802597,68428.0,68427.0,0.001654]
[1729425104102,0.53763704,68428.0,68427.0,0.001654]
[1729425104534,0.5376347,68428.0,68427.0,0.001654]
[1729425105606,0.42802597,68428.0,68427.0,0.001654]
[1729425105786,0.5376347,68428.0,68427.0,0.001654]
[1729425109595,0.50492597,68428.0,68427.0,0.001654]
[1729425110032,0.61453854,68428.0,68427.0,0.001654]
[1729425110513,0.50492597,68428.0,68427.0,0.001654]
[1729425111912,0.6145386,68428.0,68427.0,0.001654]
[1729425112361,0.50492597,68428.0,68427.0,0.001654]
[1729425113536,0.61453894,68428.0,68427.0,0.001654]
[1729425113753,0.59166643,68428.0,68427.0,0.001654]
[1729425113978,0.48205346,68428.0,68427.0,0.001654]
[1729425114219,0.59166643,68428.0,68427.0,0.001654]
[1729425114455,0.48205346,68428.0,68427.0,0.001654]
[1729425121488,0.59166753,68428.0,68427.0,0.001654]
[1729425121682,0.48205346,68428.0,68427.0,0.001654]
[1729425123114,0.59166865,68428.0,68427.0,0.001654]
[1729425123370,0.59166905,68428.0,68427.0,0.001654]
[1729425123834,0.61454209,68428.0,68427.0,0.001654]
[1729425124058,0.5049265,68428.0,68427.0,0.001654]
[1729425125942,0.61454231,68428.0,68427.0,0.001654]
[1729425126408,0.5049265,68428.0,68427.0,0.001654]
[1729425126873,0.61454225,68428.0,68427.0,0.001654]
[1729425127583,0.5049265,68428.0,68427.0,0.001654]
[1729425127809,0.53764214,68428.0,68427.0,0.001654]
[1729425128983,0.44114214,68428.0,68427.0,0.001654]
[1729425129211,0.39594833,68428.0,68427.0,0.001654]
[1729425129430,0.28633269,68428.0,68427.0,0.001654]
[1729425134024,0.37401713,68428.0,68427.0,0.001654]
[1729425139393,0.37400877,68428.0,68427.0,0.001654]
[1729425140508,0.3774233,68428.0,68427.0,0.001654]
[1729425140921,0.35455026,68428.0,68427.0,0.001654]
[1729425143228,0.26687418,68428.0,68427.0,0.001654]
[1729425144772,0.35454797,68428.0,68427.0,0.001654]
[1729425145465,0.26687418,68428.0,68427.0,0.001654]
[1729425147334,0.35454881,68428.0,68427.0,0.001654]
[1729425147753,0.26687418,68428.0,68427.0,0.001654]
[1729425148210,0.35454879,68428.0,68427.0,0.001654]
[1729425148665,0.26687418,68428.0,68427.0,0.001654]
[1729425149303,0.41583333,68428.0,68427.0,0.001654]
[1729425152472,0.50350842,68428.0,68427.0,0.001654]
[1729425154060,0.50350761,68428.0,68427.0,0.001654]
[1729425154294,0.41583333,68428.0,68427.0,0.001654]
[1729425154758,0.52542619,68428.0,68427.0,0.001654]
[1729425155013,0.52742619,68428.0,68427.0,0.001654]
[1729425155241,0.58893333,68428.0,68427.0,0.001654]
[1729425155732,0.63335884,68428.0,68427.0,0.001654]
[1729425156181,0.76487027,68428.0,68427.0,0.001654]
[1729425156407,0.63335884,68428.0,68427.0,0.001654]
[1729425156668,0.76484028,68428.0,68427.0,0.001654]
[1729425157615,0.63335884,68428.0,68427.0,0.001654]
[1729425158310,0.76484028,68428.0,68427.0,0.001654]
[1729425158538,0.63335884,68428.0,68427.0,0.001654]
[1729425158944,0.76484028,68428.0,68427.0,0.001654]
[1729425159196,0.63335884,68428.0,68427.0,0.001654]
[1729425160364,1.88915884,68428.0,68427.0,0.001654]
[1729425160796,1.86569997,68428.0,68427.0,0.001654]
[1729425161247,1.9100874,68428.0,68427.0,0.001654]
[1729425161698,1.86569997,68428.0,68427.0,0.001654]
[1729425161935,1.91008291,68428.0,68427.0,0.001654]
[1729425162612,1.86569997,68428.0,68427.0,0.001654]
[1729425162829,0.60989997,68428.0,68427.0,0.001654]
[1729425166337,1.86569997,68428.0,68427.0,0.001654]
[1729425184593,1.91008832,68428.0,68427.0,0.001654]
[1729425186326,1.91009375,68428.0,68427.0,0.001654]
[1729425191331,1.83099375,68428.0,68427.0,0.001654]
[1729425197620,1.96242266,68428.0,68427.0,0.001654]
[1729425198527,1.83099375,68428.0,68427.0,0.001654]
[1729425198736,2.05740059,68428.0,68427.0,0.001654]
[1729425198962,1.83099375,68428.0,68427.0,0.001654]
[1729425199173,2.05740059,68428.0,68427.0,0.001654]
[1729425199607,1.83099375,68428.0,68427.0,0.001654]
[1729425201398,1.85386978,68428.0,68427.0,0.001654]
[1729425204121,2.00766978,68428.0,68427.0,0.001654]
[1729425204346,2.08027662,68428.0,68427.0,0.001654]
[1729425204548,1.85386978,68428.0,68427.0,0.001654]
[1729425206611,0.013,68418.0,68417.0,0.097554]
[1729425206831,0.25531776,68418.0,68417.0,0.097554]
[1729425207051,0.37549905,68418.0,68417.0,0.097554]
[1729425207973,0.26586635,68418.0,68417.0,0.097554]
[1729425208187,0.37549905,68418.0,68417.0,0.097554]
[1729425208411,0.5244582,68418.0,68417.0,0.097554]
[1729425209324,0.4148255,68418.0,68417.0,0.097554]
[1729425209759,0.5244582,68418.0,68417.0,0.097554]
[1729425210457,0.4148255,68418.0,68417.0,0.097554]
[1729425210882,0.5244582,68418.0,68417.0,0.097834]
[1729425211329,0.52444682,68418.0,68417.0,0.097834]
[1729425212062,0.4148255,68418.0,68417.0,0.097834]
[1729425212725,0.52444682,68418.0,68417.0,0.097834]
[1729425212944,0.4128255,68418.0,68417.0,0.097834]
[1729425215653,0.52244682,68418.0,68417.0,0.097834]
[1729425215908,0.4128255,68418.0,68417.0,0.097834]
[1729425216346,0.52243832,68418.0,68417.0,0.097834]
[1729425216794,0.4128255,68418.0,68417.0,0.097834]
[1729425219797,0.52243832,68418.0,68417.0,0.097834]
[1729425220237,0.4128255,68418.0,68417.0,0.097834]
[1729425220687,0.50051251,68418.0,68417.0,0.097834]
[1729425222489,0.26386635,68418.0,68417.0,0.097834]
[1729425225049,0.32963017,68418.0,68417.0,0.097834]
[1729425229073,0.26386635,68418.0,68417.0,0.097834]
[1729425229291,0.3077042,68418.0,68417.0,0.097834]
[1729425229983,0.32963017,68418.0,68417.0,0.097834]
[1729425230206,0.26386635,68418.0,68417.0,0.097834]
[1729425230882,0.32962513,68418.0,68417.0,0.097834]
[1729425231440,0.4128255,68418.0,68417.0,0.097834]
[1729425231895,0.26386635,68418.0,68417.0,0.097834]
[1729425232614,0.30770379,68418.0,68417.0,0.173634]
[1729425232832,0.26386635,68418.0,68417.0,0.173634]
[1729425241157,0.25286635,68418.0,68417.0,0.173634]
[1729425243660,0.15950774,68418.0,68417.0,0.173634]
[1729425246824,0.15950774,68418.0,68417.0,0.196634]
[1729425247491,0.01054859,68418.0,68417.0,0.200634]
[1729425247943,0.00219236,68420.0,68418.0,0.1909]
[1729425248161,0.00219236,68420.0,68419.0,0.1679]
[1729425248630,0.00219236,68420.0,68419.0,0.1909]
[1729425249762,0.15115151,68420.0,68419.0,0.1909]
[1729425259486,0.16188005,68420.0,68419.0,0.1909]
[1729425267755,0.16188005,68420.0,68419.0,0.192554]
[1729425270008,0.1590943,68420.0,68419.0,0.192554]
[1729425280135,0.16249998,68420.0,68419.0,0.192554]
[1729425294137,0.16249998,68420.0,68419.0,0.024654]
[1729425298653,0.01354083,68420.0,68419.0,0.207954]
[1729425299095,0.00219236,68420.0,68419.0,0.207954]
[1729425300702,0.00219236,68420.0,68419.0,0.21051271]
[1729425307332,0.00219236,68420.0,68419.0,0.25428512]
[1729425308261,0.00219236,68420.0,68419.0,0.21051271]
[1729425308477,0.00219236,68420.0,68419.0,0.25428268]
[1729425310722,0.00219236,68420.0,68419.0,0.21051271]
[1729425311592,0.00219236,68420.0,68419.0,0.25427404]
[1729425311807,0.00219236,68420.0,68419.0,0.21051271]
[1729425312752,0.00219236,68420.0,68419.0,0.27615843]
[1729425313663,0.00219236,68420.0,68419.0,0.21051271]
[1729425315600,0.00219236,68420.0,68419.0,0.207954]
[1729425317977,0.00219236,68420.0,68419.0,0.2756154]
[1729425318213,0.000827,68421.0,68420.0,0.023]
[1729425318443,0.000827,68421.0,68420.0,0.18645137]
[1729425318671,0.000827,68421.0,68420.0,0.26795137]
[1729425318912,0.000827,68421.0,68420.0,0.27195137]
[1729425319401,0.000827,68421.0,68420.0,0.20632265]
[1729425319605,0.000827,68421.0,68420.0,0.27193646]
[1729425320609,0.000827,68421.0,68420.0,0.20632265]
[1729425322329,0.000827,68421.0,68420.0,0.27193347]
[1729425322565,0.000827,68421.0,68420.0,0.20632265]
[1729425323292,0.000827,68421.0,68420.0,0.27193347]
[1729425324482,0.000827,68421.0,68420.0,0.26901082]
[1729425326672,0.000827,68421.0,68420.0,0.29047892]
[1729425330957,0.000827,68421.0,68420.0,0.2904595]
[1729425333314,0.000827,68421.0,68420.0,0.2689914]
[1729425333539,0.000827,68421.0,68420.0,0.2034]
[1729425335334,0.000827,68421.0,68420.0,0.2689914]
[1729425336001,0.000827,68421.0,68420.0,0.26899087]
[1729425340117,0.000827,68421.0,68420.0,0.27064487]
[1729425342676,0.000827,68421.0,68420.0,0.205054]
[1729425345460,0.000827,68421.0,68420.0,0.29250849]
[1729425345707,0.000827,68421.0,68420.0,0.29255789]
[1729425349905,0.000827,68421.0,68420.0,0.205054]
[1729425350158,0.000827,68421.0,68420.0,0.31443386]
[1729425350596,0.000827,68421.0,68420.0,0.31446294]
[1729425353615,0.000827,68421.0,68420.0,0.205054]
[1729425359457,0.000827,68421.0,68420.0,0.028654]
[1729425373326,0.000827,68421.0,68420.0,0.024654]
[1729425373555,0.000827,68421.0,68420.0,0.005654]
[1729425373738,0.01219473,68421.0,68420.0,0.005654]
[1729425374342,0.01219473,68421.0,68420.0,0.04945402]
[1729425374527,0.000827,68421.0,68420.0,0.04945402]
[1729425374771,0.000827,68421.0,68420.0,0.028654]
[1729425375226,0.41539577,68421.0,68420.0,0.04545294]
[1729425375434,0.41539577,68421.0,68420.0,0.001654]
[1729425375649,0.42361504,68421.0,68420.0,0.001654]
[1729425412355,0.34501504,68421.0,68420.0,0.001654]
[1729425421453,0.25401504,68421.0,68420.0,0.001654]
[1729425436551,0.25620753,68421.0,68420.0,0.001654]
[1729425444793,0.25620753,68421.0,68420.0,0.001654]
[1729425445042,0.25927933,68421.0,68420.0,0.001654]
[1729425474785,0.16326971,68421.0,68420.0,0.079154]
[1729425478920,0.16107722,68421.0,68420.0,0.079154]
[1729425481945,0.16107722,68421.0,68420.0,0.001654]
[1729425482152,0.26039689,68421.0,68420.0,0.001654]
[1729425501478,0.28665581,68421.0,68420.0,0.001654]
[1729425503282,0.26039689,68421.0,68420.0,0.001654]
[1729425550208,0.16107722,68421.0,68420.0,0.169754]
[1729425550923,0.25592038,68421.0,68420.0,0.169754]
[1729425555607,0.24770111,68421.0,68420.0,0.169754]
[1729425555788,0.25586214,68421.0,68420.0,0.169754]
[1729425557344,0.25586214,68421.0,68420.0,0.001654]
[1729425577886,0.25586214,68421.0,68420.0,1.001654]
[1729425578360,0.24462931,68421.0,68420.0,1.001654]
[1729425579062,0.25586301,68421.0,68420.0,1.001654]
[1729425579792,0.37685273,68421.0,68420.0,1.001654]
[1729425580532,0.35176301,68421.0,68420.0,1.001654]
[1729425588249,0.34880631,68421.0,68420.0,1.001654]
[1729425598770,0.25290631,68421.0,68420.0,1.001654]
[1729425622838,0.25509878,68421.0,68420.0,1.001654]
[1729425635178,0.009104,68421.0,68420.0,1.203154]
[1729425659883,0.07304225,68427.0,68421.0,0.023]
[1729425660126,0.14895915,68426.0,68421.0,0.023]
[1729425665358,0.14895915,68426.0,68421.0,0.024654]
[1729425667189,0.00988219,68425.0,68421.0,0.024654]
[1729425667420,0.14895915,68424.0,68421.0,0.024654]
[1729425676251,0.14895915,68424.0,68421.0,0.001654]
[1729425676950,0.00988598,68423.0,68421.0,0.001654]
[1729425677157,0.14895915,68422.0,68421.0,0.001654]
[1729425677409,0.25592413,68422.0,68421.0,0.001654]
[1729425685574,0.24130873,68422.0,68421.0,0.001654]
[1729425685787,0.24350105,68422.0,68421.0,0.001654]
[1729425687049,0.24130873,68422.0,68421.0,0.001654]
[1729425687724,0.24080873,68422.0,68421.0,0.001654]
[1729425717732,0.24163573,68422.0,68421.0,0.001654]
[1729425723342,0.14454807,68422.0,68421.0,0.001654]
[1729425723821,0.13467075,68422.0,68421.0,0.001654]
[1729425724767,0.13686307,68422.0,68421.0,0.001654]
[1729425729263,0.13686307,68422.0,68420.0,1.001654]
[1729425729996,0.13686307,68422.0,68421.0,0.001654]
[1729425735461,0.13686307,68422.0,68420.0,1.001654]
[1729425738893,0.13690307,68422.0,68420.0,1.001654]
[1729425748002,0.13690307,68422.0,68421.0,0.004]
[1729425748003,0.000867,68422.0,68421.0,0.004]
[1729425748218,0.000867,68422.0,68421.0,0.22944575]
[1729425748448,0.000867,68422.0,68421.0,0.24952301]
[1729425748663,0.000867,68422.0,68421.0,0.2085717]
[1729425748885,0.000867,68422.0,68421.0,0.27430622]
[1729425749597,0.000867,68422.0,68421.0,0.2085717]
[1729425751094,0.000867,68422.0,68421.0,0.27430622]
[1729425751510,0.000867,68422.0,68421.0,0.2085717]
[1729425752529,0.000867,68422.0,68421.0,0.29621773]
[1729425752765,0.000867,68422.0,68421.0,0.2085717]
[1729425753007,0.000867,68422.0,68421.0,0.29621773]
[1729425753480,0.000867,68422.0,68421.0,0.29616329]
[1729425754191,0.000867,68422.0,68421.0,0.2085717]
[1729425754438,0.000867,68422.0,68421.0,0.29613672]
[1729425754924,0.000867,68422.0,68421.0,0.29326502]
[1729425755370,0.000867,68422.0,68421.0,0.20814715]
[1729425755863,0.000867,68422.0,68421.0,0.31518949]
[1729425756354,0.000867,68422.0,68421.0,0.29325156]
[1729425756838,0.000867,68422.0,68421.0,0.2057]
[1729425757144,0.000867,68422.0,68421.0,0.29324217]
[1729425757575,0.000867,68422.0,68421.0,0.2057]
[1729425759409,0.000867,68422.0,68421.0,0.27134784]
[1729425759634,0.000867,68422.0,68421.0,0.27134726]
[1729425760805,0.000867,68422.0,68421.0,0.2057]
[1729425763093,0.000867,68422.0,68421.0,0.24946651]
[1729425763574,0.000867,68422.0,68421.0,0.2057]
[1729425765581,0.000867,68422.0,68421.0,0.028654]
[1729425766267,0.01158866,68422.0,68421.0,0.028654]
[1729425766495,0.000867,68422.0,68421.0,0.028654]
[1729425766707,0.01159218,68422.0,68421.0,0.028654]
[1729425766920,0.000867,68422.0,68421.0,0.028654]
[1729425774776,0.000867,68422.0,68421.0,0.005654]
[1729425777579,0.000867,68422.0,68421.0,0.00857685]
[1729425777770,0.000867,68422.0,68421.0,0.198154]
[1729425780358,0.000867,68422.0,68421.0,0.028654]
[1729425781845,0.000867,68422.0,68421.0,0.005654]
[1729425782045,0.47137715,68422.0,68421.0,0.001654]
[1729425782270,0.48209638,68422.0,68421.0,0.001654]
[1729425782731,0.58125126,68422.0,68421.0,0.001654]
[1729425782944,0.43510026,68422.0,68421.0,0.001654]
[1729425787286,0.43510026,68422.0,68420.0,1.001654]
[1729425787557,0.14895915,68421.0,68420.0,1.001654]
[1729425787796,0.25278564,68421.0,68420.0,1.001654]
[1729425793350,0.01071409,68421.0,68420.0,1.005654]
[1729425793562,0.000867,68422.0,68420.0,1.005654]
[1729425794895,0.000867,68422.0,68421.0,0.004]
[1729425800016,0.000867,68422.0,68421.0,0.00692289]
[1729425800464,0.000867,68422.0,68421.0,0.0069227]
[1729425800665,0.000867,68422.0,68421.0,0.1062227]
[1729425800876,0.000867,68422.0,68421.0,0.1835227]
[1729425802019,0.000867,68422.0,68421.0,0.1851767]
[1729425804170,0.000867,68422.0,68421.0,0.22894035]
[1729425804374,0.000867,68422.0,68421.0,0.1851767]
[1729425804787,0.000867,68422.0,68421.0,0.22894619]
[1729425804997,0.000867,68422.0,68421.0,0.1851767]
[1729425805209,0.000867,68422.0,68421.0,0.27383094]
[1729425805411,0.000867,68422.0,68421.0,0.27382394]
[1729425805618,0.000867,68422.0,68421.0,0.2081767]
[1729425805830,0.000867,68422.0,68421.0,0.27382415]
[1729425806452,0.000867,68422.0,68421.0,0.2081767]
[1729425807125,0.000867,68422.0,68421.0,0.29571568]
[1729425807327,0.000867,68422.0,68421.0,0.2081767]
[1729425807531,0.000867,68422.0,68421.0,0.27382293]
[1729425807736,0.000867,68422.0,68421.0,0.27382416]
[1729425808351,0.000867,68422.0,68421.0,0.2081767]
[1729425808554,0.000867,68422.0,68421.0,0.205254]
[1729425808754,0.000867,68422.0,68421.0,0.40071553]
[1729425808961,0.000867,68422.0,68421.0,0.310254]
[1729425810413,0.000867,68422.0,68421.0,0.3311368]
[1729425811285,0.000867,68422.0,68421.0,0.44053541]
[1729425811497,0.000867,68422.0,68421.0,0.3311368]
[1729425812275,0.000867,68422.0,68421.0,0.41863955]
[1729425812530,0.000867,68422.0,68421.0,0.3311368]
[1729425812669,0.000867,68422.0,68421.0,0.44053541]
[1729425812872,0.000867,68422.0,68421.0,0.3311368]
[1729425813103,0.000867,68422.0,68421.0,0.44053541]
[1729425813510,0.000867,68422.0,68421.0,0.3311368]
[1729425814111,0.000867,68422.0,68421.0,0.3261368]
[1729425814316,0.000867,68422.0,68421.0,0.3311368]
[1729425814505,0.000867,68422.0,68421.0,0.44049473]
[1729425814965,0.000867,68422.0,68421.0,0.3311368]
[1729425815836,0.000867,68422.0,68421.0,0.41861061]
[1729425816074,0.000867,68422.0,68421.0,0.3311368]
[1729425817599,0.000867,68422.0,68421.0,0.41859966]
[1729425819061,0.000867,68422.0,68421.0,0.41859584]
[1729425819279,0.000867,68422.0,68421.0,0.3311368]
[1729425819519,0.000867,68422.0,68421.0,0.41859584]
[1729425819734,0.000867,68422.0,68421.0,0.3311368]
[1729425819947,0.000867,68422.0,68421.0,0.41859584]
[1729425820382,0.000867,68422.0,68421.0,0.41858489]
[1729425824047,0.000867,68422.0,68421.0,0.3261368]
[1729425824292,0.000867,68422.0,68421.0,0.39671756]
[1729425824712,0.000867,68422.0,68421.0,0.3311368]
[1729425824920,0.000867,68422.0,68421.0,0.22011511]
[1729425826444,0.000867,68422.0,68421.0,0.1545368]
[1729425830634,0.000867,68422.0,68421.0,0.24197754]
[1729425832701,0.000867,68422.0,68421.0,0.38813054]
[1729425833517,0.000867,68422.0,68421.0,0.3006898]
[1729425835493,0.000867,68422.0,68421.0,0.40999073]
[1729425836869,0.000867,68422.0,68421.0,0.3006898]
[1729425844666,0.000867,68422.0,68421.0,0.279807]
[1729425845716,0.00738725,68429.0,68428.0,0.146139]
[1729425846164,0.00738725,68429.0,68428.0,0.150139]
[1729425847100,0.00738725,68429.0,68428.0,0.21582788]
[1729425849651,0.00738725,68429.0,68428.0,0.150139]
[1729425849890,0.00738725,68429.0,68428.0,0.21584884]
[1729425850348,0.00738725,68429.0,68428.0,0.150139]
[1729425852630,0.00738725,68429.0,68428.0,0.23776626]
[1729425853085,0.00738725,68429.0,68428.0,0.150139]
[1729425853543,0.00738725,68429.0,68428.0,0.23776626]
[1729425858472,0.00638725,68429.0,68428.0,0.23776626]
[1729425859420,0.01714922,68429.0,68428.0,0.23776626]
[1729425861830,0.01714922,68429.0,68428.0,0.23778674]
[1729425862303,0.01714922,68429.0,68428.0,0.23944074]
[1729425868869,0.01320599,68429.0,68428.0,0.23944074]
[1729425871624,0.01320599,68429.0,68428.0,0.23946505]
[1729425876621,0.01320599,68429.0,68428.0,0.23946572]
[1729425881404,0.01320599,68429.0,68428.0,0.151793]
[1729425881619,0.01320599,68429.0,68428.0,0.23946605]
[1729425888441,0.01324599,68429.0,68428.0,0.23946605]
[1729425891411,0.01324599,68429.0,68428.0,0.23946696]
[1729425896235,0.01324599,68429.0,68428.0,0.23946737]
[1729425900660,0.01324599,68429.0,68428.0,0.151793]
[1729425900873,0.16439719,68429.0,68428.0,0.23546718]
[1729425901101,0.16439719,68429.0,68428.0,0.147793]
[1729425903103,0.16139719,68429.0,68428.0,0.147793]
[1729425903961,0.15920514,68429.0,68428.0,0.147793]
[1729425906201,0.15920514,68429.0,68428.0,0.23546718]
[1729425909075,0.15920514,68429.0,68428.0,0.23946718]
[1729425909076,0.01024599,68429.0,68428.0,0.23946718]
[1729425909294,0.00342725,68429.0,68428.0,0.41156718]
[1729425910638,0.00342725,68429.0,68428.0,0.23946718]
[1729425914477,0.00342725,68429.0,68428.0,0.23946328]
[1729425919530,0.00342725,68429.0,68428.0,0.26138085]
[1729425919752,0.00342725,68429.0,68428.0,0.151793]
[1729425919965,0.00342725,68429.0,68428.0,0.26138085]
[1729425921588,0.00342725,68429.0,68428.0,0.151793]
[1729425922376,0.00342725,68429.0,68428.0,0.26138085]
[1729425922610,0.00342725,68429.0,68428.0,0.151793]
[1729425924293,0.00342725,68429.0,68428.0,0.26138085]
[1729425924506,0.00342725,68429.0,68428.0,0.151793]
[1729425930817,0.00342725,68429.0,68428.0,0.23943946]
[1729425932651,0.00342725,68429.0,68428.0,0.151793]
[1729425932870,0.01189276,68429.0,68428.0,0.151793]
[1729425937000,0.01189276,68429.0,68428.0,0.21752841]
[1729425937439,0.00342725,68429.0,68428.0,0.21752841]
[1729425941973,0.00342725,68429.0,68428.0,0.151793]
[1729425943750,0.00342725,68429.0,68428.0,0.23943946]
[1729425945504,0.00561934,68429.0,68428.0,0.23943946]
[1729425945735,0.00342725,68429.0,68428.0,0.23943946]
[1729425948681,0.00342725,68429.0,68428.0,0.23943977]
[1729425953656,0.00342725,68429.0,68428.0,0.23944035]
[1729425958577,0.00342725,68429.0,68428.0,0.23944033]
[1729425960227,0.00342725,68429.0,68428.0,0.26135217]
[1729425960689,0.00342725,68429.0,68428.0,0.151793]
[1729425961871,0.00342725,68429.0,68428.0,0.23944264]
[1729425962095,0.00342725,68429.0,68428.0,0.151793]
[1729425966071,0.00342725,68429.0,68428.0,0.147793]
[1729425966312,0.00342725,68429.0,68428.0,0.21353436]
[1729425966611,0.01184698,68429.0,68428.0,0.147793]
[1729425969549,0.01184698,68429.0,68428.0,0.1916159]
[1729425970443,0.01184698,68429.0,68428.0,0.19161583]
[1729425970907,0.01184698,68429.0,68428.0,0.151793]
[1729425971145,0.00342725,68429.0,68428.0,0.21753436]
[1729425971399,0.01184698,68429.0,68428.0,0.151793]
[1729425971644,0.01184698,68429.0,68428.0,0.21752482]
[1729425971645,0.00342725,68429.0,68428.0,0.21752482]
[1729425976461,0.00342725,68429.0,68428.0,0.21752541]
[1729425981391,0.00342725,68429.0,68428.0,0.151793]
[1729425981594,0.00342725,68429.0,68428.0,0.21752416]
[1729425983613,0.00342725,68429.0,68428.0,0.151793]
[1729425983831,0.00342725,68429.0,68428.0,0.21752416]
[1729425984279,0.10002725,68429.0,68428.0,0.21352416]
[1729425984473,0.18514698,68429.0,68428.0,0.21352416]
[1729425984955,0.18514698,68429.0,68428.0,0.147793]
[1729425985647,0.18514698,68429.0,68428.0,0.19161597]
[1729425986133,0.18514698,68429.0,68428.0,0.147793]
[1729425986363,0.18514698,68429.0,68428.0,0.19161339]
[1729425986584,0.18514698,68429.0,68428.0,0.147793]
[1729425986812,0.10844698,68429.0,68428.0,0.19161339]
[1729425987542,0.01184698,68429.0,68428.0,0.147793]
[1729426004867,0.01184698,68429.0,68428.0,0.19160575]
[1729426005080,0.00342725,68429.0,68428.0,0.19160575]
[1729426005552,0.00342725,68429.0,68428.0,0.147793]
[1729426005780,0.00342725,68429.0,68428.0,0.19160575]
[1729426006688,0.00342725,68429.0,68428.0,0.147793]
[1729426007135,0.00342725,68429.0,68428.0,0.19160575]
[1729426008725,0.00342725,68429.0,68428.0,0.147793]
[1729426009913,0.00342725,68429.0,68428.0,0.19161332]
[1729426019481,0.00342725,68429.0,68428.0,0.21351212]
[1729426021010,0.00286084,68429.0,68428.0,0.21351212]
[1729426022803,0.00286084,68429.0,68428.0,0.21352791]
[1729426024260,0.00286084,68429.0,68428.0,0.21352799]
[1729426024993,0.00286084,68429.0,68428.0,0.147793]
[1729426025500,0.00286084,68429.0,68428.0,0.21352799]
[1729426026421,0.00286084,68429.0,68428.0,0.147793]
[1729426026644,0.00286084,68429.0,68428.0,0.21352799]
[1729426027097,0.00286084,68429.0,68428.0,0.147793]
[1729426027544,0.00286084,68429.0,68428.0,0.21352799]
[1729426027979,0.00286084,68429.0,68428.0,0.147793]
[1729426034958,0.00286084,68429.0,68428.0,0.19161858]
[1729426035168,0.00286084,68429.0,68428.0,0.001654]
[1729426035169,0.42128503,68429.0,68428.0,0.001654]
[1729426035407,0.56742103,68429.0,68428.0,0.001654]
[1729426035624,0.5768473,68429.0,68428.0,0.001654]
[1729426036565,0.5778473,68429.0,68428.0,0.001654]
[1729426037017,0.66749022,68429.0,68428.0,0.001654]
[1729426037241,0.66549022,68429.0,68428.0,0.001654]
[1729426037500,0.64350118,68429.0,68428.0,0.001654]
[1729426038440,0.5778473,68429.0,68428.0,0.001654]
[1729426039108,0.70739815,68429.0,68428.0,0.001654]
[1729426039549,0.75113697,68429.0,68428.0,0.001654]
[1729426039986,0.62158612,68429.0,68428.0,0.001654]
[1729426040432,0.5778473,68429.0,68428.0,0.001654]
[1729426047507,0.60071919,68429.0,68428.0,0.001654]
[1729426071691,0.60291157,68429.0,68428.0,0.001654]
[1729426076397,0.64657202,68429.0,68428.0,0.001654]
[1729426077491,0.60291157,68429.0,68428.0,0.001654]
[1729426077713,0.64663941,68429.0,68428.0,0.001654]
[1729426077943,0.60291157,68429.0,68428.0,0.001654]
[1729426078167,0.64663912,68429.0,68428.0,0.001654]
[1729426078390,0.66840225,68429.0,68428.0,0.001654]
[1729426079040,0.60291157,68429.0,68428.0,0.001654]
[1729426079473,0.66840225,68429.0,68428.0,0.001654]
[1729426080363,0.60291157,68429.0,68428.0,0.001654]
[1729426080993,0.6302627,68429.0,68428.0,0.001654]